bitfinex/quotes_ETHUSD_20220201
["timestamp","ask_amount","ask_price","bid_price","bid_amount"]
[1643749085955,21.18,2782.8,2782.0,30.0]
[1643749086151,4.19084595,2782.7,2782.0,30.0]
[1643749086352,0.36175866,2782.3,2782.0,30.0]
[1643749086553,23.57055335,2782.2,2782.0,30.0]
[1643749086751,4.35,2782.1,2782.0,30.0]
[1643749086950,4.5297,2782.1,2782.0,28.2397]
[1643749087653,0.35904,2782.1,2782.0,26.3842]
[1643749087850,2.95904,2782.1,2782.0,26.3842]
[1643749088104,0.35904,2782.1,2782.0,26.3842]
[1643749088708,2.40762454,2782.1,2782.0,26.3842]
[1643749089308,23.40792454,2782.1,2782.0,26.3842]
[1643749090311,2.22792454,2782.1,2782.0,26.3842]
[1643749090512,23.40792454,2782.1,2782.0,26.3842]
[1643749090712,21.35934,2782.1,2782.0,26.3842]
[1643749091318,21.87734,2782.1,2782.0,26.3842]
[1643749091940,23.39602807,2782.1,2782.0,26.3842]
[1643749092539,21.87734,2782.1,2782.0,26.3842]
[1643749093142,0.69734,2782.1,2782.0,26.3842]
[1643749093444,1.58452533,2782.5,2782.0,26.3842]
[1643749093445,0.86523533,2782.5,2782.0,26.3842]
[1643749093648,0.69134,2782.9,2782.0,26.3842]
[1643749093847,0.512,2782.9,2782.1,1.0]
[1643749094044,0.3323,2782.9,2782.1,1.0]
[1643749094746,0.91177934,2782.7,2782.1,1.0]
[1643749095344,0.3323,2782.9,2782.1,1.0]
[1643749096203,0.3323,2782.9,2782.0,26.78912523]
[1643749097201,0.69365822,2782.6,2782.0,26.78912523]
[1643749097403,0.87299822,2782.6,2782.0,26.3842]
[1643749097603,2.01848906,2782.5,2782.0,26.3842]
[1643749097804,0.87299822,2782.6,2782.0,26.3842]
[1643749099209,1.99354712,2782.5,2782.0,26.3842]
[1643749099449,2.91134712,2782.5,2782.0,26.3842]
[1643749099850,0.9178,2782.5,2782.0,26.3842]
[1643749100250,2.95680709,2782.5,2782.0,26.3842]
[1643749100847,2.91566739,2782.5,2782.0,26.3842]
[1643749103698,0.17934,2782.4,2782.0,26.3842]
[1643749104001,0.35904,2782.4,2782.0,26.3842]
[1643749104598,0.1797,2782.4,2782.0,26.3842]
[1643749106003,0.17934,2782.3,2782.0,26.3842]
[1643749107850,5.80939715,2782.1,2782.0,26.3842]
[1643749108253,5.63005715,2782.1,2782.0,26.3842]
[1643749109357,5.80939715,2782.1,2782.0,26.3842]
[1643749109553,5.63005715,2782.1,2782.0,26.3842]
[1643749110593,0.17934,2782.3,2782.0,26.3842]
[1643749112099,3.27941496,2782.1,2782.0,26.3842]
[1643749112497,3.45875496,2782.1,2782.0,26.3842]
[1643749112698,0.72790081,2782.1,2782.0,26.3842]
[1643749112898,0.90724081,2782.1,2782.0,26.3842]
[1643749113099,0.72790081,2782.1,2782.0,26.3842]
[1643749113300,0.90724081,2782.1,2782.0,26.3842]
[1643749114543,0.72790081,2782.1,2782.0,26.3842]
[1643749115045,0.90724081,2782.1,2782.0,26.3842]
[1643749115451,9.74394693,2782.1,2782.0,24.7642468]
[1643749115651,31.22394693,2782.1,2782.0,11.45192366]
[1643749115854,31.22394693,2782.1,2782.0,4.53502512]
[1643749115855,31.70364693,2782.1,2782.0,4.53502512]
[1643749116051,31.70364693,2782.1,2781.1,0.1797]
[1643749116052,0.60658445,2782.0,2781.1,0.1797]
[1643749116254,0.77310735,2781.2,2781.1,0.1797]
[1643749116453,1.68620735,2781.2,2781.1,0.1797]
[1643749116651,2.20420735,2781.2,2781.1,0.1797]
[1643749117159,2.20420735,2781.2,2780.7,0.95]
[1643749117160,2.38354735,2781.2,2780.7,0.95]
[1643749117461,1.51910324,2781.1,2780.7,0.53856407]
[1643749117753,0.518,2781.0,2780.7,0.53856407]
[1643749117951,6.97934,2780.8,2780.7,0.53856407]
[1643749118203,31.67614323,2780.8,2780.7,0.53856407]
[1643749118412,6.8,2780.7,2780.1,0.25]
[1643749118611,6.8,2780.7,2779.7,2.3436]
[1643749118612,0.518,2780.6,2779.7,2.3436]
[1643749118805,0.518,2780.6,2779.7,1.1345]
[1643749119205,3.17933999,2780.5,2779.4,0.1797]
[1643749119408,3.17933999,2780.5,2779.1,1.0]
[1643749119409,0.518,2780.4,2779.1,1.0]
[1643749119611,2.54048173,2780.3,2779.1,1.0]
[1643749119806,2.84048173,2780.3,2779.1,1.0]
[1643749120010,0.518,2780.2,2779.1,1.0]
[1643749120210,0.85642089,2779.5,2779.1,1.0]
[1643749120421,0.518,2779.4,2779.1,1.0]
[1643749120610,6.97934,2779.2,2779.1,1.0]
[1643749120810,7.49734,2779.2,2779.1,1.0]
[1643749121006,0.69734,2779.2,2779.1,1.0]
[1643749121409,0.1799,2779.5,2779.1,1.0]
[1643749121613,0.2065,2779.6,2779.1,1.01210209]
[1643749121848,0.2065,2779.6,2779.1,1.0]
[1643749122347,0.38584,2779.6,2779.1,1.0]
[1643749122749,0.68584,2779.6,2779.1,1.0]
[1643749122949,0.38584,2779.6,2779.1,1.0]
[1643749123153,0.2065,2779.6,2779.1,1.69190818]
[1643749124055,0.2065,2779.6,2779.2,0.41958612]
[1643749124257,0.2065,2779.6,2779.1,1.0]
[1643749128021,2.03354632,2779.5,2779.1,1.0]
[1643749128225,0.1799,2779.5,2779.1,1.0]
[1643749128527,2.24121885,2779.5,2779.1,1.0]
[1643749128724,0.93832175,2779.4,2779.1,1.0]
[1643749128924,0.1799,2779.5,2779.1,1.0]
[1643749129123,2.22281417,2779.5,2779.1,1.0]
[1643749129351,3.00215417,2779.5,2779.1,1.0]
[1643749130250,3.40859401,2779.5,2779.1,1.0]
[1643749130458,0.84400822,2779.4,2779.1,1.0]
[1643749130652,2.36158295,2779.3,2779.1,1.0]
[1643749130852,2.66158295,2779.3,2779.1,1.0]
[1643749131151,6.02635782,2779.2,2779.1,1.0]
[1643749131754,2.20625782,2779.2,2779.1,1.0]
[1643749131955,0.1799,2779.2,2779.1,1.0]
[1643749132154,0.1799,2779.6,2779.1,1.0]
[1643749132557,0.1797,2779.7,2779.1,1.0]
[1643749132958,0.83811687,2779.4,2779.1,1.0]
[1643749133204,1.01745687,2779.4,2779.1,1.0]
[1643749133402,4.37934,2779.2,2779.1,1.0]
[1643749134001,6.507169,2779.2,2779.1,1.0]
[1643749134704,6.987069,2779.2,2779.1,1.0]
[1643749135507,6.987069,2779.2,2778.4,0.8290041]
[1643749135508,0.80520204,2778.7,2778.4,0.8290041]
[1643749140365,2.44311952,2779.1,2778.4,0.8290041]
[1643749140366,2.74311952,2779.1,2778.4,0.8290041]
[1643749140594,0.1799,2779.0,2778.4,0.7790041]
[1643749140801,2.04262948,2779.0,2778.4,0.7790041]
[1643749140997,2.0445151,2779.0,2778.4,0.7790041]
[1643749141195,2.02084972,2779.0,2778.4,0.7790041]
[1643749141394,0.80041765,2778.7,2778.4,0.7790041]
[1643749142097,6.97934,2778.5,2778.4,0.7790041]
[1643749142297,9.49663957,2778.5,2778.4,0.7790041]
[1643749143599,2.69663957,2778.5,2778.4,0.7790041]
[1643749144200,7.74663957,2778.5,2778.4,0.7790041]
[1643749144449,2.69663957,2778.5,2778.4,0.7790041]
[1643749144650,0.17934,2778.5,2778.4,0.7790041]
[1643749144852,0.1799,2778.6,2778.4,0.7790041]
[1643749145049,0.17934,2778.8,2778.4,0.7790041]
[1643749145050,0.1799,2778.7,2778.4,0.7790041]
[1643749145650,0.17934,2778.5,2778.4,0.7790041]
[1643749146452,1.09935304,2778.5,2778.4,0.7790041]
[1643749146852,0.92001304,2778.5,2778.4,0.7790041]
[1643749147252,0.1799,2778.7,2778.4,0.7790041]
[1643749147453,0.1799,2778.8,2778.4,0.7790041]
[1643749147853,0.1799,2778.8,2778.4,0.79152565]
[1643749148095,0.1799,2779.1,2778.4,0.79152565]
[1643749148301,0.81472141,2779.0,2778.4,0.79152565]
[1643749148706,0.1799,2779.3,2778.4,0.78992694]
[1643749149101,0.1799,2779.6,2778.4,1.08992694]
[1643749149300,0.1799,2779.7,2778.4,2.08992694]
[1643749149503,0.17934,2779.6,2778.4,2.08992694]
[1643749149706,0.1799,2779.5,2778.8,0.87453108]
[1643749149903,0.1799,2779.5,2778.4,2.08992694]
[1643749150702,0.1799,2779.5,2778.4,1.78992694]
[1643749151103,0.1799,2779.5,2778.5,0.72933189]
[1643749151502,0.17934,2779.4,2778.4,0.78992694]
[1643749151706,0.1799,2779.3,2778.4,0.77740539]
[1643749151950,0.17934,2779.2,2778.4,0.77740539]
[1643749152553,0.1799,2779.3,2778.9,0.89206474]
[1643749152753,0.1799,2779.5,2778.9,0.89206474]
[1643749152952,0.17934,2779.7,2778.9,0.89206474]
[1643749153157,3.1515,2780.4,2778.9,0.89206474]
[1643749153158,0.17934,2780.1,2779.0,0.01269893]
[1643749153454,0.1797,2780.0,2779.0,0.01269893]
[1643749154255,0.1797,2780.0,2779.0,1.01269893]
[1643749154856,0.1797,2780.0,2779.0,0.01269893]
[1643749155056,0.4797,2780.0,2779.0,0.01269893]
[1643749155255,0.1797,2780.0,2779.0,0.01269893]
[1643749155457,0.17934,2779.9,2778.9,0.89206474]
[1643749155700,0.1797,2779.8,2778.9,0.89206474]
[1643749156098,0.94168247,2779.6,2778.9,0.89206474]
[1643749156298,1.42102247,2779.6,2778.9,0.89206474]
[1643749156502,1.72102247,2779.6,2778.9,0.89206474]
[1643749156701,1.72102247,2779.6,2778.7,0.1797]
[1643749156899,1.72102247,2779.6,2778.6,4.4122]
[1643749157099,1.72102247,2779.6,2778.6,1.1721]
[1643749157799,1.72102247,2779.6,2778.6,3.01963164]
[1643749158403,1.72102247,2779.6,2778.6,1.1721]
[1643749158604,1.72102247,2779.6,2778.5,0.1799]
[1643749158605,1.52023099,2779.5,2778.5,0.1799]
[1643749158805,0.1799,2779.4,2778.4,4.50990539]
[1643749159202,0.4799,2779.5,2778.4,4.50990539]
[1643749159458,1.5202117,2779.4,2778.4,4.50990539]
[1643749159663,0.1799,2779.3,2778.4,4.50990539]
[1643749159859,0.17934,2779.2,2778.4,4.50990539]
[1643749160060,0.17934,2779.2,2778.4,0.77740539]
[1643749160864,1.52026717,2779.1,2778.4,0.77740539]
[1643749161263,2.12026717,2779.1,2778.4,0.77740539]
[1643749161464,0.6,2779.1,2778.4,0.77740539]
[1643749161666,0.85353716,2779.1,2778.4,0.77740539]
[1643749161865,3.75173249,2779.0,2778.4,0.77740539]
[1643749162069,22.87965358,2778.9,2778.4,0.77740539]
[1643749162265,1.70021358,2778.8,2778.4,0.77740539]
[1643749162468,7.79999999,2778.5,2778.4,5.375e-05]
[1643749162679,7.79999999,2778.5,2777.1,0.00226027]
[1643749162680,6.8,2778.4,2777.1,0.00226027]
[1643749162867,0.68592012,2777.3,2777.1,0.00226027]
[1643749163098,0.68592012,2777.3,2776.5,0.83310241]
[1643749163302,0.98592012,2777.3,2776.3,0.4299]
[1643749163504,0.98592012,2777.3,2776.3,0.1799]
[1643749163505,1.46526012,2777.3,2776.3,0.1799]
[1643749163702,1.46526012,2777.3,2775.7,0.26428752]
[1643749163703,0.518,2777.2,2776.0,0.1299]
[1643749163903,0.35924,2777.1,2775.7,4.06032725]
[1643749164102,2.03934056,2777.0,2775.7,4.0483]
[1643749164305,0.71808529,2776.3,2775.7,0.25]
[1643749164502,0.71808529,2776.3,2775.6,1.1976]
[1643749164708,0.71808529,2776.3,2775.5,0.41958612]
[1643749164918,0.71808529,2776.3,2775.2,0.18029]
[1643749164919,2.0,2776.2,2775.2,0.18029]
[1643749165106,2.0,2776.2,2775.1,1.1082822]
[1643749165107,0.1801,2776.1,2775.1,1.1082822]
[1643749165305,0.17934,2776.0,2775.1,1.1082822]
[1643749165503,0.6981,2775.9,2775.1,1.1082822]
[1643749165712,0.70493503,2775.3,2775.1,1.1082822]
[1643749166108,6.77934,2775.2,2775.1,1.1082822]
[1643749166403,6.95944,2775.2,2775.1,1.1082822]
[1643749166605,5.25,2775.1,2774.4,0.1801]
[1643749166852,0.35944,2775.0,2774.4,0.1801]
[1643749167050,0.35944,2775.0,2774.5,0.04263175]
[1643749167051,0.65944,2775.0,2774.5,0.04263175]
[1643749167750,0.78880717,2774.8,2774.4,0.17273175]
[1643749167949,2.50712064,2774.7,2774.4,0.17273175]
[1643749168350,3.55922064,2774.7,2774.4,0.17273175]
[1643749168755,1.2323,2774.7,2774.4,0.17273175]
[1643749168953,1.2323,2774.7,2774.3,0.36965153]
[1643749168954,1.0521,2774.7,2774.3,0.36965153]
[1643749169753,1.0521,2774.7,2774.6,5.99334912]
[1643749169953,0.70160857,2775.5,2774.7,5.35]
[1643749170154,0.1802,2775.9,2774.7,5.35]
[1643749170356,0.1802,2775.9,2775.3,0.01228874]
[1643749170357,0.1801,2775.9,2775.3,0.01228874]
[1643749170614,0.35944,2775.9,2774.9,0.1801]
[1643749170814,0.35944,2775.9,2774.9,0.4801]
[1643749170815,0.1801,2775.9,2774.9,0.4801]
[1643749171009,0.1801,2775.9,2774.9,0.1801]
[1643749171010,0.89857596,2775.3,2774.9,0.1801]
[1643749171212,0.34874183,2775.8,2774.9,0.1801]
[1643749171213,0.52808183,2775.8,2774.9,0.1801]
[1643749171413,0.1801,2775.7,2774.9,0.1801]
[1643749171716,0.1801,2775.9,2774.9,0.1801]
[1643749171914,0.1801,2775.9,2774.5,0.01205903]
[1643749172312,0.35944,2775.9,2774.5,0.01205903]
[1643749172512,2.20254484,2775.8,2774.5,0.01205903]
[1643749172712,0.1801,2775.7,2774.5,0.01205903]
[1643749172914,0.1801,2775.8,2774.5,0.01205903]
[1643749173117,0.1801,2775.9,2774.6,0.1801]
[1643749173719,0.17934,2775.8,2774.6,0.1801]
[1643749173919,0.1801,2775.7,2774.6,0.1801]
[1643749174749,0.04917564,2776.0,2774.6,0.1801]
[1643749174750,0.1801,2775.9,2774.6,0.4801]
[1643749175151,0.1801,2775.9,2774.6,0.1801]
[1643749175954,2.26962496,2775.9,2774.6,0.1801]
[1643749176153,0.1801,2775.9,2774.6,0.1801]
[1643749176355,0.17934,2775.8,2774.6,0.1801]
[1643749176553,0.1801,2775.7,2774.6,0.1801]
[1643749176755,0.17934,2775.6,2774.6,0.1801]
[1643749176954,0.1801,2775.8,2774.6,0.1801]
[1643749177455,0.1801,2775.9,2774.6,0.1801]
[1643749177652,2.29840173,2775.9,2774.6,0.1801]
[1643749177855,0.17934,2775.8,2774.6,0.1801]
[1643749178100,0.1801,2775.7,2774.5,0.01205903]
[1643749178907,0.1801,2775.7,2774.5,0.91287903]
[1643749179107,0.1801,2775.7,2774.6,0.1801]
[1643749179305,0.1801,2775.7,2774.5,0.19215903]
[1643749179508,0.1801,2775.7,2774.5,0.49215903]
[1643749179709,0.1801,2775.7,2774.5,0.19215903]
[1643749180509,0.17934,2775.6,2774.5,0.19215903]
[1643749180708,0.1801,2775.5,2774.5,0.01205903]
[1643749181209,0.1801,2775.7,2774.5,0.01205903]
[1643749182255,2.36836251,2775.7,2774.5,0.01205903]
[1643749182450,2.36836251,2775.7,2774.3,0.1801]
[1643749182451,0.17934,2775.6,2774.3,0.1801]
[1643749182651,0.6981,2775.5,2774.3,0.1801]
[1643749182849,2.47155927,2775.4,2774.3,0.1801]
[1643749183054,0.1801,2775.3,2774.3,0.1801]
[1643749183854,0.17934,2775.2,2774.3,0.1801]
[1643749184054,0.1801,2775.1,2774.0,2.3949379]
[1643749184256,0.1801,2775.3,2774.0,2.3949379]
[1643749184455,0.1801,2775.6,2774.0,1.3949379]
[1643749184656,0.1801,2775.6,2774.0,1.0949379]
[1643749184861,2.26319745,2775.6,2774.0,1.0949379]
[1643749185255,0.17934,2775.5,2774.0,1.0949379]
[1643749185455,0.1801,2775.4,2774.0,1.0949379]
[1643749185704,0.1801,2775.4,2774.4,0.01234432]
[1643749185904,0.1801,2775.5,2774.4,0.01234432]
[1643749186106,0.1801,2775.6,2774.4,0.01234432]
[1643749187104,0.4801,2775.6,2774.5,0.1801]
[1643749187410,0.4801,2775.6,2774.4,0.01234432]
[1643749187411,0.17934,2775.5,2774.4,0.19244432]
[1643749187609,0.1801,2775.4,2774.3,0.1801]
[1643749187806,0.1801,2775.4,2774.3,1.1801]
[1643749188008,0.1801,2775.4,2774.3,0.1801]
[1643749188211,2.33976386,2775.4,2774.3,0.1801]
[1643749188410,2.33976386,2775.4,2774.1,0.1801]
[1643749188814,0.1801,2775.4,2774.1,0.1801]
[1643749190552,0.69734,2775.3,2774.1,0.1801]
[1643749190751,2.1801,2775.2,2774.0,0.6148379]
[1643749190951,0.69734,2775.1,2774.0,0.6148379]
[1643749191149,21.18,2774.9,2774.0,0.6148379]
[1643749191350,3.87754,2774.8,2774.0,0.6148379]
[1643749191550,3.87754,2774.8,2774.0,0.52656547]
[1643749191753,21.38295,2774.6,2774.0,0.52656547]
[1643749191954,21.38295,2774.6,2773.6,0.1801]
[1643749191955,1.05313093,2773.9,2773.6,0.1801]
[1643749192152,0.6982,2773.8,2773.6,0.1801]
[1643749192350,6.97934,2773.7,2773.6,0.1801]
[1643749192559,6.97934,2773.7,2772.2,9.1467]
[1643749192560,6.8,2773.6,2772.3,0.01468676]
[1643749192757,2.1802,2773.5,2772.3,0.00226027]
[1643749192951,2.87754,2773.5,2772.3,0.00226027]
[1643749193212,0.00588903,2773.4,2771.8,1.1082822]
[1643749193408,0.6982,2773.3,2771.8,1.1082822]
[1643749193607,21.8782,2773.3,2771.8,3.1082822]
[1643749193908,0.9982,2773.3,2772.0,2.0]
[1643749194107,0.9982,2773.3,2771.8,3.0582822]
[1643749194414,0.18468442,2773.2,2771.8,1.0582822]
[1643749194607,0.6982,2773.1,2771.8,1.0582822]
[1643749194808,0.17934,2773.0,2771.8,3.0582822]
[1643749195010,0.6982,2772.9,2771.8,3.0582822]
[1643749195210,0.17934,2772.8,2771.8,1.0582822]
[1643749195410,0.1802,2772.7,2771.8,1.0582822]
[1643749195806,0.17934,2772.6,2771.8,1.0582822]
[1643749196006,0.1802,2772.5,2771.8,1.0582822]
[1643749196606,0.1802,2772.8,2771.8,1.0582822]
[1643749196866,0.17934,2772.7,2771.8,1.0582822]
[1643749197057,0.1802,2772.6,2771.8,1.0582822]
[1643749197356,0.1802,2772.7,2771.8,1.0582822]
[1643749197765,2.32006599,2772.8,2771.8,1.0582822]
[1643749197957,0.17934,2772.6,2771.8,1.0582822]
[1643749198166,0.1802,2772.5,2771.8,1.0582822]
[1643749198363,0.17934,2772.4,2771.8,1.0582822]
[1643749198565,0.17934,2772.4,2771.5,0.1802]
[1643749198566,21.18,2772.2,2771.5,0.1802]
[1643749198766,21.18,2772.2,2770.6,0.25]
[1643749198767,6.8,2772.0,2770.6,0.25]
[1643749198966,6.8,2772.0,2770.3,0.00226027]
[1643749198967,2.6984,2771.9,2770.3,0.00226027]
[1643749199165,2.6984,2771.9,2770.2,0.01204777]
[1643749199166,2.9484,2771.9,2770.2,0.01204777]
[1643749199363,3.2484,2771.9,2770.2,0.01204777]
[1643749199764,0.17934,2771.8,2770.2,0.01204777]
[1643749199968,0.00407664,2772.0,2770.2,22.71712328]
[1643749199969,0.1804,2771.7,2770.2,22.71712328]
[1643749200167,0.00407664,2772.0,2770.9,0.01222083]
[1643749200168,0.1804,2771.9,2770.9,0.01222083]
[1643749200369,0.00407664,2772.0,2770.9,0.01222083]
[1643749200370,0.00407664,2772.0,2771.0,0.17932]
[1643749200606,0.3878,2772.5,2771.0,0.1804]
[1643749200607,0.17934,2772.4,2771.0,0.1804]
[1643749200804,0.35954,2772.4,2770.9,0.01222083]
[1643749200999,0.35954,2772.4,2771.0,0.1803]
[1643749201000,0.1802,2772.4,2771.0,0.1803]
[1643749201603,0.1802,2772.4,2771.1,1.0]
[1643749201804,0.3878,2772.5,2771.3,1.3]
[1643749202003,0.3878,2772.5,2771.4,2.518]
[1643749202200,0.3878,2772.5,2771.6,0.01257679]
[1643749203208,0.3878,2772.5,2771.5,0.1802]
[1643749203407,0.3878,2772.5,2771.2,0.17932]
[1643749203408,0.1802,2772.4,2771.2,0.17932]
[1643749203609,0.3878,2772.5,2772.0,0.11263421]
[1643749203810,0.3878,2772.5,2771.9,0.01209888]
[1643749204451,0.3878,2772.5,2772.0,0.518]
[1643749204654,0.3878,2772.5,2772.0,0.6982]
[1643749204850,0.3378,2772.5,2772.0,1.6982]
[1643749205251,0.3378,2772.5,2772.2,0.11263421]
[1643749205451,0.3378,2772.5,2771.6,0.1802]
[1643749205656,0.3378,2772.5,2771.5,1.1802]
[1643749205851,0.3378,2772.5,2771.5,1.4802]
[1643749206652,0.3378,2772.5,2772.0,0.11263421]
[1643749206851,0.3378,2772.5,2771.5,0.4802]
[1643749207054,0.3378,2772.5,2771.5,0.1802]
[1643749207652,0.1802,2772.9,2771.9,1.0]
[1643749207852,0.1802,2773.6,2772.2,1.0]
[1643749208117,0.1802,2773.6,2772.3,0.7452243]
[1643749208325,0.1802,2773.6,2772.3,1.0452243]
[1643749208522,0.1802,2773.6,2772.4,0.1802]
[1643749208721,0.1802,2773.6,2772.4,0.4802]
[1643749208919,0.1802,2773.6,2772.8,1.0]
[1643749209122,0.0093819,2773.7,2772.8,0.17932]
[1643749209320,0.0093819,2773.7,2773.2,1.1926452]
[1643749209519,0.0093819,2773.7,2773.3,0.518]
[1643749209722,0.0093819,2773.7,2773.5,0.11263421]
[1643749209922,0.0093819,2773.7,2773.3,0.52470959]
[1643749210121,0.0093819,2773.7,2773.3,0.00670959]
[1643749210322,0.0093819,2773.7,2773.2,1.4926452]
[1643749210323,0.0093819,2773.7,2773.4,0.518]
[1643749210524,0.0093819,2773.7,2773.5,0.518]
[1643749210928,0.1802,2774.7,2773.5,0.518]
[1643749210929,0.1802,2775.3,2773.6,0.17932]
[1643749211130,1.52274369,2775.2,2773.8,0.01298926]
[1643749211326,0.1802,2775.1,2774.1,0.1211704]
[1643749211526,0.1802,2775.1,2774.2,0.518]
[1643749211728,0.1802,2775.8,2774.4,0.25]
[1643749211955,0.1802,2775.8,2774.5,2.80903214]
[1643749211956,1.52244378,2775.7,2774.5,2.80903214]
[1643749212150,0.1801,2775.6,2774.6,0.13819997]
[1643749212350,0.68063944,2776.5,2774.9,0.25]
[1643749212552,0.68063944,2776.5,2774.9,0.77704885]
[1643749212553,1.70249033,2776.4,2774.9,0.77704885]
[1643749212750,1.52239033,2776.3,2775.7,0.11263421]
[1643749212949,1.52239033,2776.3,2774.9,1.07704885]
[1643749212950,6.05,2776.1,2774.9,1.07704885]
[1643749213156,1.70249033,2776.0,2774.9,1.068]
[1643749213356,3.52239033,2775.9,2774.9,0.768]
[1643749213561,3.52239033,2775.9,2774.9,0.25]
[1643749213562,1.70249033,2775.8,2774.9,0.25]
[1643749213758,1.52239033,2775.7,2774.9,0.25]
[1643749213959,0.1801,2775.6,2774.9,0.25]
[1643749214356,0.1801,2775.7,2774.9,0.25]
[1643749214557,0.1801,2775.7,2775.2,0.5963226]
[1643749214858,6.8,2775.5,2775.2,0.5963226]
[1643749215057,6.97934,2775.3,2775.2,0.5963226]
[1643749215256,8.50206499,2775.3,2775.2,0.5963226]
[1643749215457,6.97934,2775.3,2775.2,0.5963226]
[1643749215698,7.27934,2775.3,2775.2,0.5963226]
[1643749216301,6.8,2775.2,2774.3,0.25]
[1643749216502,6.8,2775.2,2773.4,9.3995]
[1643749216503,21.18,2775.0,2773.7,0.00226027]
[1643749216704,2.99734,2774.9,2773.7,0.00226027]
[1643749216900,0.1802,2774.8,2773.7,0.00226027]
[1643749217100,2.83362328,2774.8,2773.5,0.1801]
[1643749217303,0.17934,2774.7,2773.5,0.1801]
[1643749217503,0.1802,2774.6,2773.5,0.1801]
[1643749217703,0.1802,2774.6,2773.4,1.0]
[1643749218103,0.1802,2774.7,2773.4,1.0]
[1643749218305,0.1802,2774.7,2773.1,0.17932]
[1643749218513,0.1802,2774.9,2773.4,0.01298221]
[1643749218714,0.1802,2775.1,2773.5,0.87752]
[1643749219006,0.1802,2775.1,2773.5,1.17752]
[1643749219206,0.1802,2775.1,2773.5,1.2982]
[1643749219452,0.17934,2775.1,2773.5,0.9982]
[1643749219652,0.1802,2775.0,2773.5,0.818]
[1643749220051,0.1802,2775.3,2773.6,0.1802]
[1643749220251,0.1802,2775.3,2773.6,0.87752]
[1643749220762,0.1802,2775.3,2773.9,1.3]
[1643749220964,0.1802,2775.3,2774.2,1.0]
[1643749221156,0.13819997,2775.8,2774.3,0.6981]
[1643749221157,0.1802,2775.6,2774.3,0.6981]
[1643749221357,0.1801,2775.7,2774.3,0.6981]
[1643749221954,0.1801,2775.7,2774.3,0.87742]
[1643749223508,0.1801,2775.7,2774.3,0.35942]
[1643749223711,0.1801,2776.1,2774.8,1.0]
[1643749223917,0.1801,2776.1,2774.9,0.79242]
[1643749224117,0.68063944,2777.0,2775.1,1.01368356]
[1643749224118,0.1801,2776.7,2775.1,1.01368356]
[1643749224312,1.52207455,2776.6,2775.2,2.6131]
[1643749224511,0.1801,2776.5,2775.3,0.0980296]
[1643749224712,0.1799,2777.2,2775.4,0.6131]
[1643749224912,1.52200436,2777.1,2775.5,0.17932]
[1643749225113,0.1799,2777.0,2775.6,0.433]
[1643749225412,1.52200436,2776.9,2775.7,0.433]
[1643749225612,1.52200436,2776.9,2775.5,1.433]
[1643749225816,0.1801,2776.8,2775.5,0.433]
[1643749226113,1.52200436,2776.7,2775.5,0.433]
[1643749226315,1.52200436,2776.7,2775.6,2.15440869]
[1643749226515,0.1801,2776.6,2775.6,2.10944558]
[1643749226712,0.8720764,2777.4,2775.6,1.0]
[1643749226713,0.1801,2777.3,2775.6,1.0]
[1643749226956,1.52197736,2777.2,2775.7,0.17932]
[1643749227151,0.1799,2777.1,2775.7,0.62164179]
[1643749227352,1.52197736,2777.0,2775.7,1.92164179]
[1643749227553,0.1799,2776.9,2775.8,0.3]
[1643749227752,1.52191745,2776.8,2775.9,0.433]
[1643749227953,1.52191745,2776.8,2775.7,1.3]
[1643749228160,1.70181745,2776.7,2775.7,0.3]
[1643749228355,0.17934,2777.2,2775.6,0.3]
[1643749228554,0.17934,2777.2,2775.5,0.61232]
[1643749228555,1.70191475,2777.1,2775.5,0.61232]
[1643749228754,1.52201475,2777.0,2775.6,0.3]
[1643749228955,0.1799,2776.9,2775.7,0.17932]
[1643749229160,0.1799,2776.9,2775.7,2.29539507]
[1643749229358,0.1799,2777.3,2775.7,1.17932]
[1643749229553,1.52189132,2777.2,2775.8,2.09728867]
[1643749229755,0.1799,2777.1,2775.8,2.09728867]
[1643749230056,1.52189132,2777.0,2775.8,1.3]
[1643749230256,0.1799,2776.9,2775.8,0.3]
[1643749230462,0.1799,2776.9,2775.6,1.1799]
[1643749230463,1.52189132,2776.8,2775.6,0.4799]
[1643749230700,0.86801505,2777.5,2775.7,0.17932]
[1643749230701,0.1801,2777.3,2775.7,0.17932]
[1643749230900,1.52185371,2777.2,2775.9,0.9003]
[1643749231098,1.70175371,2777.1,2775.9,1.3333]
[1643749231299,1.52185371,2777.0,2775.9,4.06217877]
[1643749231501,0.1799,2776.9,2775.9,4.06217877]
[1643749231703,0.1799,2776.9,2776.0,0.17932]
[1643749231901,0.18737561,2777.5,2775.8,0.1799]
[1643749231902,0.3,2777.0,2775.8,0.1799]
[1643749232100,1.70184695,2776.9,2775.8,0.1799]
[1643749232301,3.55,2776.7,2775.3,0.26834433]
[1643749232701,0.1799,2776.8,2775.3,0.26834433]
[1643749232900,0.1801,2777.0,2775.4,2.17549326]
[1643749233100,1.52194192,2776.9,2775.4,2.17549326]
[1643749233306,1.52194192,2776.9,2775.4,2.77549326]
[1643749233513,1.52194192,2776.9,2775.4,3.77549326]
[1643749233706,1.52194192,2776.9,2775.4,3.47549326]
[1643749233905,1.52194192,2776.9,2775.4,1.31239607]
[1643749234107,1.52194192,2776.9,2775.4,1.3]
[1643749234108,1.82194192,2776.9,2775.4,1.3]
[1643749234364,1.70204192,2776.8,2775.4,0.3]
[1643749234560,1.52194192,2776.7,2775.3,0.08902433]
[1643749234762,0.1801,2776.6,2775.3,0.08902433]
[1643749235258,0.3,2776.8,2775.3,0.08902433]
[1643749235461,1.70210725,2776.7,2775.3,0.08902433]
[1643749235659,1.52200725,2776.6,2775.3,0.08902433]
[1643749235862,0.1801,2776.9,2775.3,1.26834433]
[1643749236062,1.52197662,2776.8,2775.4,2.12520064]
[1643749236262,0.1801,2776.7,2775.5,0.17932]
[1643749236461,0.1801,2776.7,2775.4,3.12520064]